Department Family,Date Paid,Expense Type,Expense Area,Supplier,Transaction Number,Amount,Vat Inclusive
Crown Prosecution Service ,03/01/24,National non domestic rates,Estate and FM: Programme,Government Property Agency London,00000001/29865,"4,156.00",
Crown Prosecution Service ,03/01/24,Lease liability non current lease payments,Balance Sheet,Government Property Agency London,00000001/29865,"6,002.47",
Crown Prosecution Service ,03/01/24,Property management fees,Estate and FM: Programme,Government Property Agency London,00000001/29865,"4,506.00",Y
Crown Prosecution Service ,03/01/24,Landlord service charge,Estate and FM: Programme,Government Property Agency London,00000001/29865,"18,659.77",
Crown Prosecution Service ,03/01/24,Crown Court Graduated Fee Scheme,London North Complex Casework Unit,6 Kings Bench Walk- Chambers of D Fisher & D Perry,101438 3,"30,103.36",Y
Crown Prosecution Service ,03/01/24,Crown Court Graduated Fee Scheme,East Midlands Complex Casework Unit,6 Kings Bench Walk- Chambers of D Fisher & D Perry,103975,"26,160.60",Y
Crown Prosecution Service ,03/01/24,Crown Court Graduated Fee Scheme,Wessex Complex Casework Unit,12 College Place,122176dml4,"51,994.44",Y
Crown Prosecution Service ,03/01/24,Crown Court Graduated Fee Scheme,Wessex Complex Casework Unit,12 College Place,122176NT2,"77,752.32",Y
Crown Prosecution Service ,03/01/24,Crown Court Graduated Fee Scheme,Yorks and Humbs CC Legal,Kings Bench Walk Leeds,123562/F/DP,"29,992.08",Y
Crown Prosecution Service ,03/01/24,Crown Court Graduated Fee Scheme,Yorks and Humbs CC Legal,Kings Bench Walk Leeds,123562/F/NC,"60,181.74",Y
Crown Prosecution Service ,03/01/24,Crown Court Graduated Fee Scheme,RWD Midlands Wales Unit,St Pauls Chambers Leeds,164317,"47,016.96",Y
Crown Prosecution Service ,03/01/24,Crown Court Graduated Fee Scheme,RWD Midlands Wales Unit,St Pauls Chambers Leeds,164317 MMT,"31,583.40",Y
Crown Prosecution Service ,03/01/24,Crown Court Graduated Fee Scheme,Counter Terrorism Unit: Internal Funding,St Pauls Chambers Leeds,168667 main,"57,836.06",Y
Crown Prosecution Service ,03/01/24,Crown Court Graduated Fee Scheme,Counter Terrorism Unit: Internal Funding,St Pauls Chambers Leeds,168667 main a,"29,244.60",Y
Crown Prosecution Service ,03/01/24,Crown Court Graduated Fee Scheme,East Midlands Complex Casework Unit,36 Bedford Row,180616/NJM,"41,279.52",Y
Crown Prosecution Service ,03/01/24,Crown Court Graduated Fee Scheme,East Midlands Complex Casework Unit,36 Bedford Row,180616/SWA,"26,824.56",Y
Crown Prosecution Service ,03/01/24,Crown Court Graduated Fee Scheme,London North Crown Court Unit,Furnival Chambers,183420/,"55,466.76",Y
Crown Prosecution Service ,03/01/24,Crown Court Graduated Fee Scheme,South West Complex Casework Unit,Guildhall Chambers Bristol,192720AL5,"87,831.90",Y
Crown Prosecution Service ,03/01/24,Crown Court Graduated Fee Scheme,South West Complex Casework Unit,Guildhall Chambers Bristol,192720JMH3,"49,098.00",Y
Crown Prosecution Service ,03/01/24,Crown Court Graduated Fee Scheme,East Midlands Crown Court Section,Seven Bedford Row,195741dst1,"62,228.40",Y
Crown Prosecution Service ,03/01/24,Crown Court Graduated Fee Scheme,London North Complex Casework Unit,23 Essex Street Chambers,201167 - JAP,"53,485.80",Y
Crown Prosecution Service ,03/01/24,Crown Court Graduated Fee Scheme,Wessex Crown Court Unit,Guildhall Chambers Bristol,204014CQ,"40,773.12",Y
Crown Prosecution Service ,03/01/24,Crown Court Graduated Fee Scheme,London North Complex Casework Unit,23 Essex Street Chambers,206882 - KL,"32,065.20",Y
Crown Prosecution Service ,03/01/24,Crown Court Graduated Fee Scheme,Thames and Chiltern Complex Casework Unit,36 Bedford Row,229026-DW,"27,942.24",Y
Crown Prosecution Service ,03/01/24,Crown Court Graduated Fee Scheme,Thames and Chiltern Complex Casework Unit,36 Bedford Row,229026-LJ,"40,995.60",Y
Crown Prosecution Service ,03/01/24,Crown Court Graduated Fee Scheme,West Midlands Complex Casework Unit,2 Kings Bench Walk London,294174-JLR-OFB1,"33,580.92",
Crown Prosecution Service ,03/01/24,Crown Court Graduated Fee Scheme,West Midlands Complex Casework Unit,2 Kings Bench Walk London,294174-RS-OFB1,"44,154.60",
Crown Prosecution Service ,03/01/24,Crown Court Graduated Fee Scheme,West Midlands Complex Casework Unit,2 Kings Bench Walk London,294175-RS-OFB2,"29,352.60",
Crown Prosecution Service ,03/01/24,Crown Court Graduated Fee Scheme,Thames Chiltern Crown Court Unit,2 Kings Bench Walk London,294772RJS,"25,579.44",
Crown Prosecution Service ,03/01/24,Crown Court Graduated Fee Scheme,Wessex Crown Court Unit,2 Kings Bench Walk London,300694-SPKC1,"42,583.20",
Crown Prosecution Service ,03/01/24,Crown Court Graduated Fee Scheme,RWD North Unit,187 Fleet Street,339932crk2,"53,689.38",Y
Crown Prosecution Service ,03/01/24,Crown Court Graduated Fee Scheme,Counter Terrorism Unit: Internal Funding,New Park Court Chambers Leeds,370497/NPKC,"35,335.02",Y
Crown Prosecution Service ,03/01/24,Crown Court Graduated Fee Scheme,Yorkshire and Humberside Complex Casework Unit,Park Square Barristers (No 6 and Sovereign merged),496865/RS/1,"51,756.60",Y
Crown Prosecution Service ,03/01/24,Crown Court Graduated Fee Scheme,Yorkshire and Humberside Complex Casework Unit,Park Square Barristers (No 6 and Sovereign merged),506262/JTH/1,"34,697.76",Y
Crown Prosecution Service ,03/01/24,Crown Court Graduated Fee Scheme,Yorks and Humbs CC Legal,Park Square Barristers (No 6 and Sovereign merged),530349/PMKC/1,"29,915.52",Y
Crown Prosecution Service ,03/01/24,Crown Court Graduated Fee Scheme,Yorks and Humbs CC Legal,Park Square Barristers (No 6 and Sovereign merged),535045/CHKC/1,"81,167.04",Y
Crown Prosecution Service ,03/01/24,Crown Court Graduated Fee Scheme,South West Complex Casework Unit,Devon Chambers,55897 HR,"27,940.20",Y
Crown Prosecution Service ,03/01/24,Crown Court Graduated Fee Scheme,South West Complex Casework Unit,Devon Chambers,55897 JPMB,"40,077.24",Y
Crown Prosecution Service ,03/01/24,Advice/PreSending Very High Cost Cases Full Scheme,Special Crime Unit London,6 Kings Bench Walk- Chambers of D Fisher & D Perry,96616- -AMG...,"40,807.20",Y
Crown Prosecution Service ,03/01/24,Crown Court Graduated Fee Scheme,SEOC Team 1,5 King's Bench Walk,BHO173487.Trial,"26,185.20",Y
Crown Prosecution Service ,03/01/24,Crown Court Graduated Fee Scheme,London North Crown Court Unit,Deka Chambers Ltd,JCT-,"27,522.00",Y
Crown Prosecution Service ,03/01/24,Crown Court Graduated Fee Scheme,East of England Complex Casework Unit,4 Breams Buildings,JWR 314836 21/12,"34,120.08",Y
Crown Prosecution Service ,03/01/24,Crown Court Graduated Fee Scheme,London North Complex Casework Unit,QEB Hollis Whiteman Chambers,PE 112627 D,"26,466.30",Y
Crown Prosecution Service ,03/01/24,Crown Court Graduated Fee Scheme,East of England Complex Casework Unit,4 Breams Buildings,SVW 314836 21/12,"48,831.12",Y
Crown Prosecution Service ,04/01/24,Apprenticeship Levy payments Permanent,Other Corporate Programme Payments,HM Revenue and Customs,948PB000021422409,"127,080.52",
Crown Prosecution Service ,04/01/24,Apprenticeship Levy payments Permanent,Other Corporate Admin Payments,HM Revenue and Customs,948PB000021422409,"11,050.48",
Crown Prosecution Service ,04/01/24,Crown Court Graduated Fee Scheme,West Midlands Crown Court Unit,St Philips Chambers,RT 684652 RPAKC,"31,126.20",Y
Crown Prosecution Service ,05/01/24,Right of use asset clearing Buildings,Balance Sheet,Government Property Agency London,00000001/30105,"110,837.18",
Crown Prosecution Service ,05/01/24,Recoverable VAT control,Balance Sheet,Iron Mountain Ltd,0790301,"7,102.40",Y
Crown Prosecution Service ,05/01/24,File Storage,DID Security and Information,Iron Mountain Ltd,0790301,"35,512.00",
Crown Prosecution Service ,05/01/24,Recoverable VAT control,Balance Sheet,Iron Mountain Ltd,0795902,"5,671.80",Y
Crown Prosecution Service ,05/01/24,File Storage,DID Security and Information,Iron Mountain Ltd,0795902,"28,359.00",
Crown Prosecution Service ,05/01/24,Crown Court Graduated Fee Scheme,London North Complex Casework Unit,2 Harcourt Buildings,118743 NAL TRIAL,"32,023.56",Y
Crown Prosecution Service ,05/01/24,Crown Court Graduated Fee Scheme,Thames and Chiltern Complex Casework Unit,Seven Bedford Row,195564gjw,"27,078.72",Y
Crown Prosecution Service ,05/01/24,Crown Court Graduated Fee Scheme,Cymru Wales Complex Casework Unit,30 Park Place Chambers,643775-7/AJ,"37,195.80",
Crown Prosecution Service ,05/01/24,Other managed/contractor services,Central Legal Training Team,Ernst & Young LLP London,GB01G000481572,"32,371.20",Y
Crown Prosecution Service ,05/01/24,Other managed/contractor services,Central Legal Training Team,Ernst & Young LLP London,GB01G000490490,"25,627.20",Y
Crown Prosecution Service ,05/01/24,Crown Court Graduated Fee Scheme,London North Crown Court Unit,QEB Hollis Whiteman Chambers,RS 113028,"36,160.44",Y
Crown Prosecution Service ,08/01/24,Reactive Maintenance,Estate and FM: Programme,Government Property Agency London,00000001/30349,"28,785.59",
Crown Prosecution Service ,08/01/24,Crown Court Graduated Fee Scheme,Thames Chiltern Crown Court Unit,5 Paper Buildings,120969/CSU1,"45,852.24",Y
Crown Prosecution Service ,08/01/24,Crown Court Graduated Fee Scheme,Thames Chiltern Crown Court Unit,5 Paper Buildings,120969/MJA,"30,859.44",Y
Crown Prosecution Service ,08/01/24,General Professional Services,DTS Programme Project Cost,NTT Data UK Ltd London,121561307,"36,138.50",Y
Crown Prosecution Service ,08/01/24,IT services,DTS Programme Project Cost,NTT Data UK Ltd London,121561308,"39,449.80",Y
Crown Prosecution Service ,08/01/24,Advice/PreSending Very High Cost Cases Full Scheme,RWD North Unit,St Pauls Chambers Leeds,140408 Inc47 HWA,"26,778.00",Y
Crown Prosecution Service ,08/01/24,Crown Court Graduated Fee Scheme,Wessex RASSO Unit,Pump Court Chambers - 3 Pump Court,305698-SFJ,"27,614.40",Y
Crown Prosecution Service ,08/01/24,Crown Court Very High Cost Cases Full Scheme,Mersey Cheshire Complex Casework Unit,New Park Court Chambers Leeds,369965-6/PGKC,"28,161.12",Y
Crown Prosecution Service ,08/01/24,Crown Court Graduated Fee Scheme,North West Complex Casework Unit,New Park Court Chambers Leeds,371116/NLKC,"47,269.08",Y
Crown Prosecution Service ,08/01/24,Recoverable VAT control,Balance Sheet,Xerox (UK) Ltd,900233391,"8,219.15",Y
Crown Prosecution Service ,08/01/24,Leases of low value assets excluding short term leases,Print Contract,Xerox (UK) Ltd,900233391,"9,620.93",
Crown Prosecution Service ,08/01/24,IT services,DTS Programme Project Cost,Xerox (UK) Ltd,900233391,"31,474.81",
Crown Prosecution Service ,08/01/24,Recoverable VAT control,Balance Sheet,CGI IT UK Ltd,GB014121630,"27,569.25",Y
Crown Prosecution Service ,08/01/24,Intangibles asset purchase clearing CMS,DTS ICT Capital Expenditure,CGI IT UK Ltd,GB014121630,"137,846.23",
Crown Prosecution Service ,08/01/24,Intangibles asset purchase clearing CMS,DTS ICT Capital Expenditure,CGI IT UK Ltd,GB014121633,"176,748.94",
Crown Prosecution Service ,08/01/24,Recoverable VAT control,Balance Sheet,CGI IT UK Ltd,GB014121633,"35,349.79",Y
Crown Prosecution Service ,08/01/24,IT services,DTS Programme Project Cost,Bloom Procurement Services Ltd Gateshead,SIN048219,"89,490.00",Y
Crown Prosecution Service ,08/01/24,IT services,DTS Programme Project Cost,Bloom Procurement Services Ltd Gateshead,SIN048221,"27,420.00",Y
Crown Prosecution Service ,08/01/24,Crown Court Very High Cost Cases Full Scheme,RWD North Unit,Citadel Chambers,TH/683966/24-1,"43,245.00",Y
Crown Prosecution Service ,09/01/24,Crown Court Graduated Fee Scheme,RWD Midlands Wales Unit,Red Lion Chambers (18 RLC),168466HFpoa,"49,893.00",Y
Crown Prosecution Service ,09/01/24,Crown Court Graduated Fee Scheme,South West Complex Casework Unit,2 Kings Bench Walk London,294952-RA,"27,162.60",
Crown Prosecution Service ,09/01/24,Crown Court Graduated Fee Scheme,East Midlands Crown Court Section,Seven Bedford Row,eke,"60,958.32",Y
Crown Prosecution Service ,09/01/24,Crown Court Graduated Fee Scheme,West Midlands Crown Court Unit,QEB Hollis Whiteman Chambers,SL 114800 A,"38,115.66",Y
Crown Prosecution Service ,10/01/24,Right of use asset clearing Buildings,Balance Sheet,Government Property Agency London,00000001/30103,"29,668.10",
Crown Prosecution Service ,10/01/24,Crown Court Graduated Fee Scheme,West Midlands Complex Casework Unit,6 Kings Bench Walk- Chambers of D Fisher & D Perry,101517 CUR..,"111,258.36",Y
Crown Prosecution Service ,10/01/24,Crown Court Graduated Fee Scheme,London South Complex Casework Unit,6 Kings Bench Walk- Chambers of D Fisher & D Perry,103172 CUR,"30,227.76",Y
Crown Prosecution Service ,10/01/24,Crown Court Graduated Fee Scheme,East Midlands Crown Court Section,36 Bedford Row,227625/MPR,"48,708.36",Y
Crown Prosecution Service ,10/01/24,Crown Court Graduated Fee Scheme,Yorkshire and Humberside Complex Casework Unit,New Park Court Chambers Leeds,367393-2/TSS,"29,574.72",Y
Crown Prosecution Service ,10/01/24,Crown Court Graduated Fee Scheme,East Midlands Crown Court Section,18 St John Street - Chambers of Peter Birkett QC,402016/MBKC,"25,122.00",Y
Crown Prosecution Service ,10/01/24,Crown Court Graduated Fee Scheme,West Midlands Complex Casework Unit,No 5 Fountain Court Chambers,834418/HSS//2,"35,835.30",Y
Crown Prosecution Service ,11/01/24,Crown Court Graduated Fee Scheme,SEOC Team 1,2 Harcourt Buildings,117277 MPA TRIAL1,"33,774.24",Y
Crown Prosecution Service ,11/01/24,Higher Court Very High Cost Cases Full Scheme,Appeals and Review Unit,3 Raymond Buildings,253666- HMSP4,"40,174.64",Y
Crown Prosecution Service ,12/01/24,Recoverable VAT control,Balance Sheet,Iron Mountain Ltd,0800178,"6,440.00",Y
Crown Prosecution Service ,12/01/24,File Storage,DID Security and Information,Iron Mountain Ltd,0800178,"32,200.00",
Crown Prosecution Service ,12/01/24,Crown Court Graduated Fee Scheme,East of England Crown Court,Red Lion Chambers (18 RLC),168380RKJtrialfees,"57,766.50",Y
Crown Prosecution Service ,12/01/24,Crown Court Graduated Fee Scheme,RWD Midlands Wales Unit,23 Essex Street Chambers,180616-COM,"29,571.36",Y
Crown Prosecution Service ,12/01/24,Crown Court Graduated Fee Scheme,RWD Midlands Wales Unit,23 Essex Street Chambers,180616-PO-3,"59,124.24",Y
Crown Prosecution Service ,12/01/24,Crown Court Graduated Fee Scheme,West Midlands Crown Court Unit,QEB Hollis Whiteman Chambers,PF 110379 A,"29,088.60",Y
Crown Prosecution Service ,15/01/24,New Works: non capital,Estate and FM: Programme,Government Property Agency London,00000001/30064,"43,849.58",Y
Crown Prosecution Service ,15/01/24,New Works: non capital,Estate and FM: Programme,Government Property Agency London,00000001/30264,"43,351.96",Y
Crown Prosecution Service ,15/01/24,Crown Court Graduated Fee Scheme,West Midlands Complex Casework Unit,6 Kings Bench Walk- Chambers of D Fisher & D Perry,105711 TC,"63,432.72",Y
Crown Prosecution Service ,15/01/24,Crown Court Graduated Fee Scheme,West Midlands Complex Casework Unit,6 Kings Bench Walk- Chambers of D Fisher & D Perry,105711 TC2,"31,531.20",Y
Crown Prosecution Service ,15/01/24,Crown Court Graduated Fee Scheme,Thames Chiltern Crown Court Unit,Foundry Chambers (9-12 Bell Yard),199940/ELL -2,"27,818.88",Y
Crown Prosecution Service ,15/01/24,Crown Court Graduated Fee Scheme,Thames Chiltern Crown Court Unit,Foundry Chambers (9-12 Bell Yard),199940/ZD - 2,"39,095.04",Y
Crown Prosecution Service ,15/01/24,Crown Court Graduated Fee Scheme,Yorks and Humbs CC Legal,Broadway House Chambers,227698-2/AL,"25,848.24",Y
Crown Prosecution Service ,15/01/24,Crown Court Graduated Fee Scheme,East Midlands Crown Court Section,1 High Pavement Chambers,280096 AP,"32,856.00",Y
Crown Prosecution Service ,15/01/24,Crown Court Graduated Fee Scheme,East Midlands Crown Court Section,1 High Pavement Chambers,280096 AP,"29,116.06",Y
Crown Prosecution Service ,15/01/24,Conference Organisation,PF HR Business Management,Calder Communications Ltd Leeds,514361,"47,409.96",Y
Crown Prosecution Service ,15/01/24,Crown Court Graduated Fee Scheme,Yorks and Humbs CC Legal,Park Square Barristers (No 6 and Sovereign merged),527883/KR/3,"43,637.76",Y
Crown Prosecution Service ,15/01/24,Crown Court Graduated Fee Scheme,Yorks and Humbs CC Legal,Park Square Barristers (No 6 and Sovereign merged),537839/MMK/1,"52,473.12",Y
Crown Prosecution Service ,15/01/24,Crown Court Graduated Fee Scheme,West Midlands Complex Casework Unit,St Philips Chambers,677744 LH 2,"51,435.00",Y
Crown Prosecution Service ,15/01/24,Crown Court Graduated Fee Scheme,SEOC Team 1,5 King's Bench Walk,CHO178494.Trial,"86,575.68",Y
Crown Prosecution Service ,15/01/24,Recoverable VAT control,Balance Sheet,CGI IT UK Ltd,GB014121632,"131,900.07",Y
Crown Prosecution Service ,15/01/24,Intangibles asset purchase clearing CMS,DTS ICT Capital Expenditure,CGI IT UK Ltd,GB014121632,"659,500.33",
Crown Prosecution Service ,15/01/24,Recoverable VAT control,Balance Sheet,CGI IT UK Ltd,GB014121927,"215,958.02",Y
Crown Prosecution Service ,15/01/24,IT services,Apps and Hosting Contract,CGI IT UK Ltd,GB014121927,"1,079,790.09",
Crown Prosecution Service ,15/01/24,IT services,DTS Programme Project Cost,CGI IT UK Ltd,GB014122096,"32,608.69",Y
Crown Prosecution Service ,15/01/24,IT services,DTS Programme Project Cost,FlyForm LTD Cardiff,INV-11661,"68,572.80",Y
Crown Prosecution Service ,15/01/24,IT services,DTS Programme Project Cost,FlyForm LTD Cardiff,INV-11674,"24,395.99",
Crown Prosecution Service ,15/01/24,Recoverable VAT control,Balance Sheet,FlyForm LTD Cardiff,INV-11674,"4,879.21",Y
Crown Prosecution Service ,15/01/24,IT services,DTS Programme Project Cost,Bloom Procurement Services Ltd Gateshead,SIN047929,"55,307.43",Y
Crown Prosecution Service ,15/01/24,IT services,DTS Programme Project Cost,Bloom Procurement Services Ltd Gateshead,SIN048665,"54,866.67",Y
Crown Prosecution Service ,15/01/24,Crown Court Graduated Fee Scheme,SEOC Team 1,5 King's Bench Walk,SW178494,"55,091.88",Y
Crown Prosecution Service ,16/01/24,Crown Court Graduated Fee Scheme,SEOC Team 2,Furnival Chambers,183511/LRP/,"27,629.28",Y
Crown Prosecution Service ,16/01/24,Crown Court Graduated Fee Scheme,SEOC Team 2,Furnival Chambers,183511/NH/,"41,781.36",Y
Crown Prosecution Service ,16/01/24,Recoverable VAT control,Balance Sheet,Oracle Corporation UK Ltd,460122405,"4,909.43",Y
Crown Prosecution Service ,16/01/24,IT non capital software licences,Legal Reference and ICT Licenses,Oracle Corporation UK Ltd,460122405,"24,547.15",
Crown Prosecution Service ,17/01/24,National non domestic rates,Estate and FM: Programme,Government Property Agency London,00000001/30427,"17,760.00",
Crown Prosecution Service ,17/01/24,Lease liability non current lease payments,Balance Sheet,Government Property Agency London,00000001/30427,"2,390.77",Y
Crown Prosecution Service ,17/01/24,Landlord service charge,Estate and FM: Programme,Government Property Agency London,00000001/30427,"19,884.28",
Crown Prosecution Service ,17/01/24,Property management fees,Estate and FM: Programme,Government Property Agency London,00000001/30427,"3,772.50",Y
Crown Prosecution Service ,17/01/24,Property management fees,Estate and FM: Programme,Government Property Agency London,00000001/30427,"22,009.44",Y
Crown Prosecution Service ,17/01/24,Ordinary Witness Expenses,South West Complex Casework Unit,Clarity Travel Management,000000168264,793.70,
Crown Prosecution Service ,17/01/24,Ordinary Witness Expenses,South West RASSO Unit Crown Court,Clarity Travel Management,000000168264,31.10,
Crown Prosecution Service ,17/01/24,Ordinary Witness Expenses,East of England Crown Court,Clarity Travel Management,000000168264,"1,440.01",Y
Crown Prosecution Service ,17/01/24,Ordinary Witness Expenses,North West Crown Court Hub,Clarity Travel Management,000000168264,377.70,Y
Crown Prosecution Service ,17/01/24,Ordinary Witness Expenses,North West RASSO Unit,Clarity Travel Management,000000168264,"1,088.51",Y
Crown Prosecution Service ,17/01/24,Ordinary Witness Expenses,North West Magistrates Court Hub,Clarity Travel Management,000000168264,103.01,Y
Crown Prosecution Service ,17/01/24,Ordinary Witness Expenses,Wessex Magistrates Court Unit,Clarity Travel Management,000000168264,18.10,
Crown Prosecution Service ,17/01/24,Ordinary Witness Expenses,Wessex Crown Court Unit,Clarity Travel Management,000000168264,332.79,Y
Crown Prosecution Service ,17/01/24,Ordinary Witness Expenses,South East Magistrates Court,Clarity Travel Management,000000168264,16.80,
Crown Prosecution Service ,17/01/24,Ordinary Witness Expenses,South East Crown Court,Clarity Travel Management,000000168264,248.95,Y
Crown Prosecution Service ,17/01/24,Ordinary Witness Expenses,South East RASSO Unit,Clarity Travel Management,000000168264,929.14,Y
Crown Prosecution Service ,17/01/24,Ordinary Witness Expenses,Mersey Cheshire Crown Court Unit,Clarity Travel Management,000000168264,754.14,Y
Crown Prosecution Service ,17/01/24,Ordinary Witness Expenses,London North Crown Court Unit,Clarity Travel Management,000000168264,"3,536.74",Y
Crown Prosecution Service ,17/01/24,Ordinary Witness Expenses,London South Complex Casework Unit,Clarity Travel Management,000000168264,673.88,Y
Crown Prosecution Service ,17/01/24,Ordinary Witness Expenses,London South Crown Court Unit,Clarity Travel Management,000000168264,981.87,Y
Crown Prosecution Service ,17/01/24,Ordinary Witness Expenses,London South RASSO,Clarity Travel Management,000000168264,"10,796.82",Y
Crown Prosecution Service ,17/01/24,Ordinary Witness Expenses,North East RASSO Unit,Clarity Travel Management,000000168264,206.30,Y
Crown Prosecution Service ,17/01/24,Ordinary Witness Expenses,East Midlands Magistrates Court Section,Clarity Travel Management,000000168264,109.00,
Crown Prosecution Service ,17/01/24,Ordinary Witness Expenses,Cymru Wales West Magistrates Court,Clarity Travel Management,000000168264,177.00,Y
Crown Prosecution Service ,17/01/24,Ordinary Witness Expenses,Cymru Wales RASSO unit,Clarity Travel Management,000000168264,291.60,Y
Crown Prosecution Service ,17/01/24,Ordinary Witness Expenses,Thames Chiltern Magistrates Court,Clarity Travel Management,000000168264,354.97,Y
Crown Prosecution Service ,17/01/24,Ordinary Witness Expenses,Thames Chiltern Crown Court Unit,Clarity Travel Management,000000168264,636.53,
Crown Prosecution Service ,17/01/24,Ordinary Witness Expenses,West Midlands Magistrates Court Unit,Clarity Travel Management,000000168264,111.20,
Crown Prosecution Service ,17/01/24,Ordinary Witness Expenses,West Midlands Complex Casework Unit,Clarity Travel Management,000000168264,"1,477.69",Y
Crown Prosecution Service ,17/01/24,Ordinary Witness Expenses,West Midlands Crown Court Unit,Clarity Travel Management,000000168264,573.97,Y
Crown Prosecution Service ,17/01/24,Ordinary Witness Expenses,West Midlands RASSO Unit,Clarity Travel Management,000000168264,"2,209.05",Y
Crown Prosecution Service ,17/01/24,Ordinary Witness Expenses,Yorks and Humbs CC Legal,Clarity Travel Management,000000168264,376.20,
Crown Prosecution Service ,17/01/24,Ordinary Witness Expenses,East Midlands Complex Casework Unit,Clarity Travel Management,000000168264,110.80,
Crown Prosecution Service ,17/01/24,Ordinary Witness Expenses,East Midlands Crown Court Section,Clarity Travel Management,000000168264,164.80,
Crown Prosecution Service ,17/01/24,Ordinary Witness Expenses,East Midlands RASSO Unit,Clarity Travel Management,000000168264,"1,510.04",Y
Crown Prosecution Service ,17/01/24,Ordinary Witness Expenses,Cymru Wales South East Crown Court,Clarity Travel Management,000000168264,274.03,
Crown Prosecution Service ,17/01/24,Ordinary Witness Expenses,Yorkshire and Humberside RASSO Unit,Clarity Travel Management,000000168264,62.20,
Crown Prosecution Service ,17/01/24,Ordinary Witness Expenses,OCSAU,Clarity Travel Management,000000168264,16.60,
Crown Prosecution Service ,17/01/24,Ordinary Witness Expenses,RWD Midlands Wales Unit,Clarity Travel Management,000000168264,"1,763.48",Y
Crown Prosecution Service ,17/01/24,Ordinary Witness Expenses,SEOC Team 1,Clarity Travel Management,000000168264,337.90,
Crown Prosecution Service ,17/01/24,Ordinary Witness Expenses,RWD North Unit,Clarity Travel Management,000000168264,884.50,
Crown Prosecution Service ,17/01/24,Ordinary Witness Expenses,South West Crown Court,Clarity Travel Management,000000168264,"1,019.65",Y
Crown Prosecution Service ,17/01/24,Ordinary Witness Expenses,SEOC Team 2,Clarity Travel Management,000000168264,288.90,
Crown Prosecution Service ,17/01/24,Ordinary Witness Expenses,South West Magistrates Court,Clarity Travel Management,000000168264,198.40,
Crown Prosecution Service ,17/01/24,Crown Court Graduated Fee Scheme,London North Crown Court Unit,2 Harcourt Buildings,117959 KBL,"26,586.72",Y
Crown Prosecution Service ,17/01/24,Crown Court Graduated Fee Scheme,Yorkshire and Humberside Complex Casework Unit,Kings Bench Walk Leeds,132553/RD,"60,166.26",Y
Crown Prosecution Service ,17/01/24,Crown Court Graduated Fee Scheme,London North Complex Casework Unit,5 King's Bench Walk,AOKC178173.Trial,"127,122.60",Y
Crown Prosecution Service ,17/01/24,Crown Court Graduated Fee Scheme,Thames Chiltern Crown Court Unit,Seven Bedford Row, dm,"37,806.00",Y
Crown Prosecution Service ,17/01/24,Crown Court Graduated Fee Scheme,London North Complex Casework Unit,5 King's Bench Walk,CP176007.Trial,"30,088.80",Y
Crown Prosecution Service ,17/01/24,UK National rail travel,DTUS,Clarity Travel Management,CPSHQ140124,49.30,
Crown Prosecution Service ,17/01/24,UK National rail travel,Corporate Communication,Clarity Travel Management,CPSHQ140124,"1,316.50",
Crown Prosecution Service ,17/01/24,UK Hotels,Operational Business Support,Clarity Travel Management,CPSHQ140124,75.75,Y
Crown Prosecution Service ,17/01/24,UK Hotels,Private Office,Clarity Travel Management,CPSHQ140124,224.00,Y
Crown Prosecution Service ,17/01/24,UK Hotels,DTUS,Clarity Travel Management,CPSHQ140124,281.01,Y
Crown Prosecution Service ,17/01/24,UK National rail travel,Operational Business Support,Clarity Travel Management,CPSHQ140124,"2,000.15",
Crown Prosecution Service ,17/01/24,UK National rail travel,Private Office,Clarity Travel Management,CPSHQ140124,327.50,
Crown Prosecution Service ,17/01/24,UK National rail travel,Operational Change,Clarity Travel Management,CPSHQ140124,"1,064.00",
Crown Prosecution Service ,17/01/24,UK National rail travel,Strategy and Policy,Clarity Travel Management,CPSHQ140124,713.00,
Crown Prosecution Service ,17/01/24,UK National rail travel,Director of Legal Services,Clarity Travel Management,CPSHQ140124,"1,982.50",
Crown Prosecution Service ,17/01/24,UK National rail travel,Operational Performance,Clarity Travel Management,CPSHQ140124,272.80,
Crown Prosecution Service ,17/01/24,UK National rail travel,Central Legal Training Team,Clarity Travel Management,CPSHQ140124,487.30,
Crown Prosecution Service ,17/01/24,UK Hotels,Central Legal Training Team,Clarity Travel Management,CPSHQ140124,922.82,Y
Crown Prosecution Service ,17/01/24,UK Hotels,PF HR Business Management,Clarity Travel Management,CPSHQ140124,25.00,Y
Crown Prosecution Service ,17/01/24,UK National rail travel,PF Legal Training,Clarity Travel Management,CPSHQ140124,91.50,
Crown Prosecution Service ,17/01/24,UK National rail travel,PF HR Operations,Clarity Travel Management,CPSHQ140124,"1,007.80",
Crown Prosecution Service ,17/01/24,UK National rail travel,PF HR Business Partnering,Clarity Travel Management,CPSHQ140124,219.50,
Crown Prosecution Service ,17/01/24,UK National rail travel,PF Learning and Development General,Clarity Travel Management,CPSHQ140124,964.75,
Crown Prosecution Service ,17/01/24,UK Hotels,PF Learning and Development General,Clarity Travel Management,CPSHQ140124,92.25,Y
Crown Prosecution Service ,17/01/24,UK National rail travel,PF People and Business Change,Clarity Travel Management,CPSHQ140124,306.00,
Crown Prosecution Service ,17/01/24,UK National rail travel,Court Business Unit,Clarity Travel Management,CPSHQ140124,"1,487.40",
Crown Prosecution Service ,17/01/24,UK Hotels,Compliance and Assurance,Clarity Travel Management,CPSHQ140124,396.67,Y
Crown Prosecution Service ,17/01/24,UK National rail travel,DID Security and Information,Clarity Travel Management,CPSHQ140124,"2,500.20",
Crown Prosecution Service ,17/01/24,UK Hotels,DID Security and Information,Clarity Travel Management,CPSHQ140124,263.15,Y
Crown Prosecution Service ,17/01/24,UK National rail travel,PF Analytics and Workforce Plan,Clarity Travel Management,CPSHQ140124,178.50,
Crown Prosecution Service ,17/01/24,UK National rail travel,DID DTS Technology,Clarity Travel Management,CPSHQ140124,386.60,
Crown Prosecution Service ,17/01/24,UK Hotels,DID DTS Technology,Clarity Travel Management,CPSHQ140124,167.01,Y
Crown Prosecution Service ,17/01/24,UK National rail travel,DID Central Leadership Team,Clarity Travel Management,CPSHQ140124,369.50,
Crown Prosecution Service ,17/01/24,UK National rail travel,CFO Estates,Clarity Travel Management,CPSHQ140124,487.00,
Crown Prosecution Service ,17/01/24,UK National rail travel,DID DTS Change,Clarity Travel Management,CPSHQ140124,"4,640.50",
Crown Prosecution Service ,17/01/24,UK National rail travel,Chief Finance Officer,Clarity Travel Management,CPSHQ140124,653.90,
Crown Prosecution Service ,17/01/24,UK Hotels,Chief Finance Officer,Clarity Travel Management,CPSHQ140124,146.20,Y
Crown Prosecution Service ,17/01/24,UK Hotels,DID DTS Change,Clarity Travel Management,CPSHQ140124,624.00,Y
Crown Prosecution Service ,17/01/24,UK National rail travel,CFO Fin System Change and Costings,Clarity Travel Management,CPSHQ140124,41.70,
Crown Prosecution Service ,17/01/24,UK Hotels,DID Central Leadership Team,Clarity Travel Management,CPSHQ140124,88.80,Y
Crown Prosecution Service ,17/01/24,UK Hotels,Permanent Transfer Costs,Clarity Travel Management,CPSHQ140124,391.00,Y
Crown Prosecution Service ,17/01/24,UK National rail travel,Central Operational Training,Clarity Travel Management,CPSHQ140124,94.80,
Crown Prosecution Service ,17/01/24,UK National rail travel,Victim Transformation Prog,Clarity Travel Management,CPSHQ140124,99.20,
Crown Prosecution Service ,17/01/24,UK National rail travel,CFO Risk and Assurance,Clarity Travel Management,CPSHQ140124,234.00,
Crown Prosecution Service ,17/01/24,UK National rail travel,Compliance and Assurance,Clarity Travel Management,CPSHQ140124,382.50,
Crown Prosecution Service ,17/01/24,UK National rail travel,CFO Commercial,Clarity Travel Management,CPSHQ140124,"1,119.20",
Crown Prosecution Service ,17/01/24,UK National rail travel,Permanent Transfer Costs,Clarity Travel Management,CPSHQ140124,726.10,
Crown Prosecution Service ,17/01/24,Crown Court Graduated Fee Scheme,London North Complex Casework Unit,QEB Hollis Whiteman Chambers,JE 111268 A,"60,181.32",Y
Crown Prosecution Service ,17/01/24,Crown Court Graduated Fee Scheme,Yorkshire and Humberside Complex Casework Unit,Kings Bench Walk Leeds,KR/132753,"40,234.80",Y
Crown Prosecution Service ,17/01/24,Crown Court Graduated Fee Scheme,Thames Chiltern Crown Court Unit,4 Breams Buildings,SVW 322332 16/1,"45,182.88",Y
Crown Prosecution Service ,18/01/24,Crown Court Graduated Fee Scheme,London North Complex Casework Unit,Red Lion Chambers (18 RLC),165015SJGtrial,"56,234.40",Y
Crown Prosecution Service ,18/01/24,Crown Court Graduated Fee Scheme,East of England Crown Court,Red Lion Chambers (18 RLC),168380NJM,"29,687.40",Y
Crown Prosecution Service ,18/01/24,Crown Court Very High Cost Cases Full Scheme,London South Complex Casework Unit,5 SAH Services Ltd,177605-1/KD Stage 9,"26,505.00",Y
Crown Prosecution Service ,18/01/24,Crown Court Graduated Fee Scheme,East Midlands Crown Court Section,36 Bedford Row,195579-03.10.23,"54,843.00",Y
Crown Prosecution Service ,18/01/24,Recoverable VAT control,Balance Sheet,HM Treasury,46127,"9,435.65",Y
Crown Prosecution Service ,18/01/24,Shared services,Other Corporate Admin Payments,HM Treasury,46127,"47,178.25",
Crown Prosecution Service ,18/01/24,Crown Court Graduated Fee Scheme,Cymru Wales RASSO unit,30 Park Place Chambers,636118-3/NF,"26,890.20",
Crown Prosecution Service ,18/01/24,Crown Court Graduated Fee Scheme,London South Crown Court Unit,QEB Hollis Whiteman Chambers,EB 112725 A,"89,896.80",Y
Crown Prosecution Service ,18/01/24,Crown Court Graduated Fee Scheme,London South Crown Court Unit,QEB Hollis Whiteman Chambers,KR 112725 A,"44,947.20",Y
Crown Prosecution Service ,18/01/24,Crown Court Graduated Fee Scheme,London North Complex Casework Unit,Deka Chambers Ltd,TL470958,"30,004.80",Y
Crown Prosecution Service ,19/01/24,Lease liability non current lease payments,Balance Sheet,Government Property Agency London,00000001/29425,"28,478.23",
Crown Prosecution Service ,19/01/24,Property management fees,Estate and FM: Programme,Government Property Agency London,00000001/29425,"8,059.64",Y
Crown Prosecution Service ,19/01/24,National non domestic rates,Estate and FM: Programme,Government Property Agency London,00000001/29454,"102,133.38",
Crown Prosecution Service ,19/01/24,Landlord service charge,Estate and FM: Programme,Government Property Agency London,00000001/29454,"136,883.31",
Crown Prosecution Service ,19/01/24,Property management fees,Estate and FM: Programme,Government Property Agency London,00000001/29454,"49,029.48",Y
Crown Prosecution Service ,19/01/24,Facilities management,Estate and FM: Programme,Government Property Agency London,00000001/29454,"103,891.14",Y
Crown Prosecution Service ,19/01/24,Lease liability non current lease payments,Balance Sheet,Government Property Agency London,00000001/29454,"251,481.15",
Crown Prosecution Service ,19/01/24,National non domestic rates,Estate and FM: Programme,Government Property Agency London,00000001/29861,"34,044.46",
Crown Prosecution Service ,19/01/24,Landlord service charge,Estate and FM: Programme,Government Property Agency London,00000001/29861,"45,627.77",
Crown Prosecution Service ,19/01/24,Property management fees,Estate and FM: Programme,Government Property Agency London,00000001/29861,"16,343.16",Y
Crown Prosecution Service ,19/01/24,Facilities management,Estate and FM: Programme,Government Property Agency London,00000001/29861,"34,630.38",Y
Crown Prosecution Service ,19/01/24,Lease liability non current lease payments,Balance Sheet,Government Property Agency London,00000001/29861,"83,827.05",
Crown Prosecution Service ,19/01/24,Recoverable VAT control,Balance Sheet,Mendip Media Group Ltd Tiverton,0000000231,"15,284.60",Y
Crown Prosecution Service ,19/01/24,Transcriptions and Translation,Other Corporate Programme Payments,Mendip Media Group Ltd Tiverton,0000000231,"76,423.00",
Crown Prosecution Service ,19/01/24,Transcriptions and Translation,Other Corporate Programme Payments,Mendip Media Group Ltd Tiverton,0000000232,"55,783.00",
Crown Prosecution Service ,19/01/24,Recoverable VAT control,Balance Sheet,Mendip Media Group Ltd Tiverton,0000000232,"11,156.60",Y
Crown Prosecution Service ,19/01/24,Crown Court Very High Cost Cases Full Scheme,Cymru Wales Complex Casework Unit,Iscoed Chambers,154641.11,"30,185.62",Y
Crown Prosecution Service ,19/01/24,Crown Court Graduated Fee Scheme,West Midlands Complex Casework Unit,36 Bedford Row,209558/JAB/MHA/KJE,"35,700.00",Y
Crown Prosecution Service ,19/01/24,Crown Court Graduated Fee Scheme,Cymru Wales South East Crown Court,Apex Chambers,51487-3/EH,"34,157.40",Y
Crown Prosecution Service ,19/01/24,Crown Court Graduated Fee Scheme,London North Complex Casework Unit,QEB Hollis Whiteman Chambers,AK 107619 F,"45,350.40",Y
Crown Prosecution Service ,19/01/24,Crown Court Graduated Fee Scheme,London North Complex Casework Unit,QEB Hollis Whiteman Chambers,CA 107619 D,"90,708.48",Y
Crown Prosecution Service ,19/01/24,Higher Court Very High Cost Cases Full Scheme,East Midlands Complex Casework Unit,Seven Bedford Row,16,"83,695.54",Y
Crown Prosecution Service ,19/01/24,Higher Court Very High Cost Cases Full Scheme,East Midlands Complex Casework Unit,Seven Bedford Row,17,"81,990.20",Y
Crown Prosecution Service ,22/01/24,Crown Court Graduated Fee Scheme,Counter Terrorism Unit: Internal Funding,6 Kings Bench Walk- Chambers of D Fisher & D Perry,104628 DAR,"46,123.98",Y
Crown Prosecution Service ,22/01/24,Telephony mobile phones and dongles,Intl Liaison Prosecutors,"Foreign, Commonwealth and Development Office",20012599,281.73,
Crown Prosecution Service ,22/01/24,Overseas Education School Fees: FCO approved schools,Intl Liaison Prosecutors,"Foreign, Commonwealth and Development Office",20012599,"6,866.30",
Crown Prosecution Service ,22/01/24,Telephony mobile phones and dongles,Intl Liaison Prosecutors,"Foreign, Commonwealth and Development Office",20012599,42.76,
Crown Prosecution Service ,22/01/24,Salaries Overseas locally employed Admin,Intl Liaison Prosecutors,"Foreign, Commonwealth and Development Office",20012599,"1,555.26",
Crown Prosecution Service ,22/01/24,Telephony mobile phones and dongles,Intl Liaison Prosecutors,"Foreign, Commonwealth and Development Office",20012599,17.90,
Crown Prosecution Service ,22/01/24,Salaries Overseas locally employed Admin,Intl Liaison Prosecutors,"Foreign, Commonwealth and Development Office",20012599,"5,272.83",
Crown Prosecution Service ,22/01/24,Salaries Overseas locally employed Admin,Intl Liaison Prosecutors,"Foreign, Commonwealth and Development Office",20012599,"4,231.30",
Crown Prosecution Service ,22/01/24,Telephony mobile phones and dongles,Intl Liaison Prosecutors,"Foreign, Commonwealth and Development Office",20012599,2.98,
Crown Prosecution Service ,22/01/24,Telephony mobile phones and dongles,Intl Liaison Prosecutors,"Foreign, Commonwealth and Development Office",20012599,138.59,
Crown Prosecution Service ,22/01/24,Overseas Subsistence,Intl Internal Funding,"Foreign, Commonwealth and Development Office",20012599,196.02,
Crown Prosecution Service ,22/01/24,Overseas Medical Other health care costs,Intl Liaison Prosecutors,"Foreign, Commonwealth and Development Office",20012599,59.89,
Crown Prosecution Service ,22/01/24,Telephony mobile phones and dongles,Intl Liaison Prosecutors,"Foreign, Commonwealth and Development Office",20012599,56.03,
Crown Prosecution Service ,22/01/24,Salaries Overseas locally employed Admin,Intl Liaison Prosecutors,"Foreign, Commonwealth and Development Office",20012599,"2,730.55",
Crown Prosecution Service ,22/01/24,Overseas Other expenses,Intl Liaison Prosecutors,"Foreign, Commonwealth and Development Office",20012599,112.21,
Crown Prosecution Service ,22/01/24,Salaries Overseas locally employed Admin,Intl Liaison Prosecutors,"Foreign, Commonwealth and Development Office",20012599,"4,094.13",
Crown Prosecution Service ,22/01/24,Telephony mobile phones and dongles,Intl Liaison Prosecutors,"Foreign, Commonwealth and Development Office",20012599,17.90,
Crown Prosecution Service ,22/01/24,Overseas Education School Fees: FCO approved schools,Intl Liaison Prosecutors,"Foreign, Commonwealth and Development Office",20012599,441.15,
Crown Prosecution Service ,22/01/24,Telephony mobile phones and dongles,Intl Liaison Prosecutors,"Foreign, Commonwealth and Development Office",20012599,20.53,
Crown Prosecution Service ,22/01/24,Telephony mobile phones and dongles,Intl Liaison Prosecutors,"Foreign, Commonwealth and Development Office",20012599,4.64,
Crown Prosecution Service ,22/01/24,Salaries Overseas locally employed Admin,Intl Liaison Prosecutors,"Foreign, Commonwealth and Development Office",20012599,"1,311.30",
Crown Prosecution Service ,22/01/24,Overseas Hotels,Intl Liaison Prosecutors,"Foreign, Commonwealth and Development Office",20012599,542.03,
Crown Prosecution Service ,22/01/24,Telephony mobile phones and dongles,Intl Liaison Prosecutors,"Foreign, Commonwealth and Development Office",20012599,41.38,
Crown Prosecution Service ,22/01/24,IT services,ICT Network Services,Vodafone Ltd formerly Cable and Wireless Milton Keynes,4039869,"34,335.79",Y
Crown Prosecution Service ,22/01/24,IT services,ICT Network Services,Vodafone Ltd formerly Cable and Wireless Milton Keynes,4039874,"34,335.79",Y
Crown Prosecution Service ,22/01/24,IT services,DTS Programme Project Cost,EntServ UK Ltd Hampshire,6134212,"78,185.00",
Crown Prosecution Service ,22/01/24,Recoverable VAT control,Balance Sheet,EntServ UK Ltd Hampshire,6134212,"15,637.00",Y
Crown Prosecution Service ,22/01/24,Crown Court Graduated Fee Scheme,RWD Midlands Wales Unit,Citadel Chambers,GAR/694477/,"50,272.32",Y
Crown Prosecution Service ,22/01/24,IT services,DTS Programme Project Cost,CGI IT UK Ltd,GB014122790,"45,246.72",Y
Crown Prosecution Service ,22/01/24,IT services,DTS Programme Project Cost,CGI IT UK Ltd,GB014122792,"36,472.10",Y
Crown Prosecution Service ,22/01/24,IT services,DTS Programme Project Cost,CGI IT UK Ltd,GB014122921,"35,137.40",Y
Crown Prosecution Service ,22/01/24,IT services,DTS Programme Project Cost,CGI IT UK Ltd,GB14122878,"32,337.72",Y
Crown Prosecution Service ,22/01/24,Recoverable VAT control,Balance Sheet,FlyForm LTD Cardiff,INV-11640,"4,879.21",Y
Crown Prosecution Service ,22/01/24,IT services,DTS Programme Project Cost,FlyForm LTD Cardiff,INV-11640,"24,395.99",
Crown Prosecution Service ,22/01/24,Crown Court Graduated Fee Scheme,RWD Midlands Wales Unit,Citadel Chambers,OKM/694477/,"33,061.08",Y
Crown Prosecution Service ,22/01/24,Crown Court Graduated Fee Scheme,London North Complex Casework Unit,2 Harcourt Buildings,PCA 118648,"49,759.56",Y
Crown Prosecution Service ,24/01/24,IT services,End User Computing Contract,Bechtle Direct Ltd Crediton,1024456241,"31,438.80",Y
Crown Prosecution Service ,24/01/24,Crown Court Graduated Fee Scheme,London North Complex Casework Unit,Furnival Chambers,177189/ESM/,"33,878.76",Y
Crown Prosecution Service ,24/01/24,FCO platform charges excluding leases,Intl Liaison Prosecutors,"Foreign, Commonwealth and Development Office",20012510,"11,800.00",
Crown Prosecution Service ,24/01/24,Overseas Residential accommodation,Intl Liaison Prosecutors,"Foreign, Commonwealth and Development Office",20012510,"8,400.00",
Crown Prosecution Service ,24/01/24,Overseas Residential accommodation,Intl Liaison Prosecutors,"Foreign, Commonwealth and Development Office",20012510,"8,700.00",
Crown Prosecution Service ,24/01/24,FCO platform charges excluding leases,Intl Liaison Prosecutors,"Foreign, Commonwealth and Development Office",20012510,"8,900.00",
Crown Prosecution Service ,24/01/24,FCO platform charges excluding leases,Intl Liaison Prosecutors,"Foreign, Commonwealth and Development Office",20012510,"18,100.00",
Crown Prosecution Service ,24/01/24,FCO platform charges excluding leases,Intl Liaison Prosecutors,"Foreign, Commonwealth and Development Office",20012510,"13,800.00",
Crown Prosecution Service ,24/01/24,Overseas Residential accommodation,Intl Liaison Prosecutors,"Foreign, Commonwealth and Development Office",20012510,"7,175.00",
Crown Prosecution Service ,24/01/24,Overseas Residential accommodation,Intl Liaison Prosecutors,"Foreign, Commonwealth and Development Office",20012510,"4,225.00",
Crown Prosecution Service ,24/01/24,Overseas Residential accommodation,Intl Liaison Prosecutors,"Foreign, Commonwealth and Development Office",20012510,"9,300.00",
Crown Prosecution Service ,24/01/24,FCO platform charges excluding leases,Intl Liaison Prosecutors,"Foreign, Commonwealth and Development Office",20012510,"11,400.00",
Crown Prosecution Service ,24/01/24,Overseas Residential accommodation,Intl Liaison Prosecutors,"Foreign, Commonwealth and Development Office",20012510,"12,800.00",
Crown Prosecution Service ,24/01/24,Overseas Residential accommodation,Intl Liaison Prosecutors,"Foreign, Commonwealth and Development Office",20012510,"10,000.00",
Crown Prosecution Service ,24/01/24,FCO platform charges excluding leases,Intl Liaison Prosecutors,"Foreign, Commonwealth and Development Office",20012510,"14,994.44",
Crown Prosecution Service ,24/01/24,FCO platform charges excluding leases,Intl Liaison Prosecutors,"Foreign, Commonwealth and Development Office",20012510,"20,700.00",
Crown Prosecution Service ,24/01/24,FCO platform charges excluding leases,Intl Liaison Prosecutors,"Foreign, Commonwealth and Development Office",20012510,"4,483.64",
Crown Prosecution Service ,24/01/24,Overseas Residential accommodation,Intl Liaison Prosecutors,"Foreign, Commonwealth and Development Office",20012510,"40,864.27",
Crown Prosecution Service ,24/01/24,FCO platform charges excluding leases,Intl Liaison Prosecutors,"Foreign, Commonwealth and Development Office",20012510,"18,100.00",
Crown Prosecution Service ,24/01/24,FCO platform charges excluding leases,Intl Liaison Prosecutors,"Foreign, Commonwealth and Development Office",20012510,"13,925.00",
Crown Prosecution Service ,24/01/24,FCO platform charges excluding leases,Intl Liaison Prosecutors,"Foreign, Commonwealth and Development Office",20012510,"7,225.00",
Crown Prosecution Service ,24/01/24,FCO platform charges excluding leases,Intl Liaison Prosecutors,"Foreign, Commonwealth and Development Office",20012510,"6,050.00",
Crown Prosecution Service ,24/01/24,FCO platform charges excluding leases,Intl Liaison Prosecutors,"Foreign, Commonwealth and Development Office",20012510,"9,825.00",
Crown Prosecution Service ,24/01/24,FCO platform charges excluding leases,Intl Liaison Prosecutors,"Foreign, Commonwealth and Development Office",20012510,"7,550.00",
Crown Prosecution Service ,24/01/24,FCO platform charges excluding leases,Intl Liaison Prosecutors,"Foreign, Commonwealth and Development Office",20012510,"14,050.00",
Crown Prosecution Service ,24/01/24,FCO platform charges excluding leases,Intl External Funding,"Foreign, Commonwealth and Development Office",20012510,"4,932.00",
Crown Prosecution Service ,24/01/24,Overseas Residential accommodation,Intl Liaison Prosecutors,"Foreign, Commonwealth and Development Office",20012510,"13,125.00",
Crown Prosecution Service ,24/01/24,Overseas Residential accommodation,Intl Liaison Prosecutors,"Foreign, Commonwealth and Development Office",20012510,"6,450.00",
Crown Prosecution Service ,24/01/24,Overseas Residential accommodation,Intl Liaison Prosecutors,"Foreign, Commonwealth and Development Office",20012510,"7,275.00",
Crown Prosecution Service ,24/01/24,Overseas Residential accommodation,Intl Liaison Prosecutors,"Foreign, Commonwealth and Development Office",20012510,"4,600.00",
Crown Prosecution Service ,24/01/24,Overseas Residential accommodation,Intl Liaison Prosecutors,"Foreign, Commonwealth and Development Office",20012510,"4,375.00",
Crown Prosecution Service ,24/01/24,Overseas Residential accommodation,Intl Liaison Prosecutors,"Foreign, Commonwealth and Development Office",20012510,"5,000.00",
Crown Prosecution Service ,24/01/24,FCO platform charges excluding leases,Intl Liaison Prosecutors,"Foreign, Commonwealth and Development Office",20012510,"5,900.00",
Crown Prosecution Service ,24/01/24,Overseas Residential accommodation,Intl Liaison Prosecutors,"Foreign, Commonwealth and Development Office",20012510,"7,800.00",
Crown Prosecution Service ,24/01/24,FCO platform charges excluding leases,Intl Liaison Prosecutors,"Foreign, Commonwealth and Development Office",20012510,"14,048.98",
Crown Prosecution Service ,24/01/24,Overseas Residential accommodation,Intl Liaison Prosecutors,"Foreign, Commonwealth and Development Office",20012510,"4,775.00",
Crown Prosecution Service ,24/01/24,FCO platform charges excluding leases,Intl Liaison Prosecutors,"Foreign, Commonwealth and Development Office",20012510,"17,800.00",
Crown Prosecution Service ,24/01/24,Crown Court Graduated Fee Scheme,East Midlands Crown Court Section,Seven Bedford Row,201916,"30,476.64",Y
Crown Prosecution Service ,24/01/24,Crown Court Graduated Fee Scheme,Wessex Crown Court Unit,Drystone Chambers (Dyers),202163 3 STW,"27,444.00",Y
Crown Prosecution Service ,24/01/24,Crown Court Very High Cost Cases Full Scheme,Cymru Wales Complex Casework Unit,9 Park Place Chambers,327033 MC Stage 9,"38,990.40",Y
Crown Prosecution Service ,24/01/24,Crown Court Very High Cost Cases Full Scheme,North West Complex Casework Unit,Exchange Chambers - Manchester,630490 STAGE 1,"25,309.20",Y
Crown Prosecution Service ,24/01/24,Crown Court Graduated Fee Scheme,South East RASSO Unit,Church Court Chambers,77587 MKKC,"26,807.16",Y
Crown Prosecution Service ,24/01/24,UK Hotels,Victim Transformation Prog,Clarity Travel Management,CPSHQ210124,135.10,Y
Crown Prosecution Service ,24/01/24,UK National rail travel,Compliance and Assurance,Clarity Travel Management,CPSHQ210124,242.80,
Crown Prosecution Service ,24/01/24,UK Hotels,CFO Commercial,Clarity Travel Management,CPSHQ210124,295.00,Y
Crown Prosecution Service ,24/01/24,UK National rail travel,CFO Commercial,Clarity Travel Management,CPSHQ210124,73.30,
Crown Prosecution Service ,24/01/24,UK National rail travel,Permanent Transfer Costs,Clarity Travel Management,CPSHQ210124,323.50,
Crown Prosecution Service ,24/01/24,UK National rail travel,DTUS,Clarity Travel Management,CPSHQ210124,511.30,
Crown Prosecution Service ,24/01/24,UK National rail travel,Corporate Communication,Clarity Travel Management,CPSHQ210124,952.00,
Crown Prosecution Service ,24/01/24,UK Hotels,Operational Business Support,Clarity Travel Management,CPSHQ210124,147.50,Y
Crown Prosecution Service ,24/01/24,UK Hotels,Private Office,Clarity Travel Management,CPSHQ210124,608.15,Y
Crown Prosecution Service ,24/01/24,UK National rail travel,Press Office,Clarity Travel Management,CPSHQ210124,211.00,
Crown Prosecution Service ,24/01/24,UK Hotels,Operational Change,Clarity Travel Management,CPSHQ210124,270.20,Y
Crown Prosecution Service ,24/01/24,UK National rail travel,Operational Business Support,Clarity Travel Management,CPSHQ210124,"1,072.60",
Crown Prosecution Service ,24/01/24,UK National rail travel,Private Office,Clarity Travel Management,CPSHQ210124,412.70,
Crown Prosecution Service ,24/01/24,UK National rail travel,Operational Change,Clarity Travel Management,CPSHQ210124,410.90,
Crown Prosecution Service ,24/01/24,UK Hotels,Corporate Communication,Clarity Travel Management,CPSHQ210124,162.98,Y
Crown Prosecution Service ,24/01/24,UK National rail travel,Strategy and Policy,Clarity Travel Management,CPSHQ210124,"2,717.60",
Crown Prosecution Service ,24/01/24,UK Hotels,Strategy and Policy,Clarity Travel Management,CPSHQ210124,152.00,Y
Crown Prosecution Service ,24/01/24,UK National rail travel,Director of Legal Services,Clarity Travel Management,CPSHQ210124,197.30,
Crown Prosecution Service ,24/01/24,UK National rail travel,Operational Performance,Clarity Travel Management,CPSHQ210124,34.30,
Crown Prosecution Service ,24/01/24,UK National rail travel,Central Legal Training Team,Clarity Travel Management,CPSHQ210124,789.40,
Crown Prosecution Service ,24/01/24,UK Hotels,Director of Legal Services,Clarity Travel Management,CPSHQ210124,223.00,Y
Crown Prosecution Service ,24/01/24,UK National rail travel,PF Resourcing,Clarity Travel Management,CPSHQ210124,355.90,
Crown Prosecution Service ,24/01/24,UK Hotels,Central Legal Training Team,Clarity Travel Management,CPSHQ210124,377.08,Y
Crown Prosecution Service ,24/01/24,UK National rail travel,PF HR Systems and Information,Clarity Travel Management,CPSHQ210124,18.00,
Crown Prosecution Service ,24/01/24,UK National rail travel,PF HR Business Management,Clarity Travel Management,CPSHQ210124,344.70,
Crown Prosecution Service ,24/01/24,UK National rail travel,PF People and Business Change,Clarity Travel Management,CPSHQ210124,197.40,Y
Crown Prosecution Service ,24/01/24,UK National rail travel,PF HR Operations,Clarity Travel Management,CPSHQ210124,110.60,
Crown Prosecution Service ,24/01/24,UK Hotels,PF HR Operations,Clarity Travel Management,CPSHQ210124,363.05,Y
Crown Prosecution Service ,24/01/24,UK National rail travel,PF HR Business Partnering,Clarity Travel Management,CPSHQ210124,863.50,
Crown Prosecution Service ,24/01/24,UK National rail travel,PF Learning and Development General,Clarity Travel Management,CPSHQ210124,838.40,
Crown Prosecution Service ,24/01/24,UK National rail travel,PF People and Business Change,Clarity Travel Management,CPSHQ210124,979.00,
Crown Prosecution Service ,24/01/24,UK National rail travel,Court Business Unit,Clarity Travel Management,CPSHQ210124,"1,262.70",
Crown Prosecution Service ,24/01/24,UK Hotels,Compliance and Assurance,Clarity Travel Management,CPSHQ210124,"1,382.40",Y
Crown Prosecution Service ,24/01/24,UK National rail travel,DID Security and Information,Clarity Travel Management,CPSHQ210124,"1,287.50",
Crown Prosecution Service ,24/01/24,UK Hotels,DID Security and Information,Clarity Travel Management,CPSHQ210124,"1,363.74",Y
Crown Prosecution Service ,24/01/24,UK National rail travel,PF Analytics and Workforce Plan,Clarity Travel Management,CPSHQ210124,351.10,
Crown Prosecution Service ,24/01/24,UK Hotels,Court Business Unit,Clarity Travel Management,CPSHQ210124,299.80,Y
Crown Prosecution Service ,24/01/24,UK Hotels,PF Analytics and Workforce Plan,Clarity Travel Management,CPSHQ210124,229.36,Y
Crown Prosecution Service ,24/01/24,UK National rail travel,DID Operational Process,Clarity Travel Management,CPSHQ210124,476.70,
Crown Prosecution Service ,24/01/24,UK Hotels,DID Operational Process,Clarity Travel Management,CPSHQ210124,260.74,Y
Crown Prosecution Service ,24/01/24,UK National rail travel,DID DTS Technology,Clarity Travel Management,CPSHQ210124,"1,010.30",
Crown Prosecution Service ,24/01/24,UK Hotels,DID DTS Technology,Clarity Travel Management,CPSHQ210124,786.00,Y
Crown Prosecution Service ,24/01/24,UK National rail travel,DID Central Leadership Team,Clarity Travel Management,CPSHQ210124,496.70,
Crown Prosecution Service ,24/01/24,UK National rail travel,CFO Estates,Clarity Travel Management,CPSHQ210124,505.60,
Crown Prosecution Service ,24/01/24,UK National rail travel,DID DTS Change,Clarity Travel Management,CPSHQ210124,"1,910.20",
Crown Prosecution Service ,24/01/24,UK National rail travel,Chief Finance Officer,Clarity Travel Management,CPSHQ210124,198.30,
Crown Prosecution Service ,24/01/24,UK Hotels,Chief Finance Officer,Clarity Travel Management,CPSHQ210124,220.78,Y
Crown Prosecution Service ,24/01/24,UK Hotels,DID DTS Change,Clarity Travel Management,CPSHQ210124,"1,390.24",Y
Crown Prosecution Service ,24/01/24,UK National rail travel,CFO Finance Operations,Clarity Travel Management,CPSHQ210124,366.20,
Crown Prosecution Service ,24/01/24,UK Hotels,Permanent Transfer Costs,Clarity Travel Management,CPSHQ210124,173.00,Y
Crown Prosecution Service ,24/01/24,UK National rail travel,Central Operational Training,Clarity Travel Management,CPSHQ210124,413.30,
Crown Prosecution Service ,24/01/24,Advice/PreSending Very High Cost Cases Full Scheme,RWD North Unit,Kings Bench Walk Leeds,DE224662/,"54,000.00",Y
Crown Prosecution Service ,24/01/24,Recoverable VAT control,Balance Sheet,CGI IT UK Ltd,GB014122866,"15,267.06",Y
Crown Prosecution Service ,24/01/24,IT services,Service Desk Contract,CGI IT UK Ltd,GB014122866,"76,335.32",
Crown Prosecution Service ,24/01/24,IT non capital software licences,Legal Reference and ICT Licenses,Outsystems LTD London,INVGB202400014,"238,908.00",Y
Crown Prosecution Service ,24/01/24,Crown Court Very High Cost Cases Full Scheme,East Midlands Complex Casework Unit,Seven Bedford Row,jpm,"38,959.30",Y
Crown Prosecution Service ,25/01/24,Crown Court Graduated Fee Scheme,South East Crown Court,23 Essex Street Chambers,174236-HUS,"32,712.36",Y
Crown Prosecution Service ,25/01/24,Crown Court Graduated Fee Scheme,South East Crown Court,23 Essex Street Chambers,174236-IH-24/1,"48,825.06",Y
Crown Prosecution Service ,25/01/24,Crown Court Graduated Fee Scheme,East Midlands Crown Court Section,36 Bedford Row,195579-EMU/JXB,"36,881.88",Y
Crown Prosecution Service ,26/01/24,Crown Court Graduated Fee Scheme,London North Complex Casework Unit,Furnival Chambers,177227/,"67,527.00",Y
Crown Prosecution Service ,26/01/24,Other Staff Costs,DID Security and Information,Cabinet Office RM Shared Services,3836151,"102,173.40",Y
Crown Prosecution Service ,26/01/24,Crown Court Very High Cost Cases Full Scheme,Yorkshire and Humberside Complex Casework Unit,Park Square Barristers (No 6 and Sovereign merged),514657/KMKC/ST7,"45,953.80",Y
Crown Prosecution Service ,26/01/24,Crown Court Graduated Fee Scheme,West Midlands Complex Casework Unit,No 5 Fountain Court Chambers,821322/HSS/8,"86,641.68",Y
Crown Prosecution Service ,26/01/24,Crown Court Very High Cost Cases Full Scheme,RWD North Unit,9 St John Street (Nine),JH 417370/1,"26,873.40",Y
Crown Prosecution Service ,29/01/24,Short term leases from 2 to 12 months: Property,Estate and FM: Programme,Government Property Agency London,00000001/29426,"85,520.37",
Crown Prosecution Service ,29/01/24,Short term leases from 2 to 12 months: Property,Estate and FM: Programme,Government Property Agency London,00000001/30531,"85,520.37",
Crown Prosecution Service ,29/01/24,Crown Court Graduated Fee Scheme,London North Complex Casework Unit,6 Kings Bench Walk- Chambers of D Fisher & D Perry,104489 PRA..,"54,145.20",Y
Crown Prosecution Service ,29/01/24,Crown Court Graduated Fee Scheme,SEOC Team 2,5 Paper Buildings,112890/AJH,"30,597.36",Y
Crown Prosecution Service ,29/01/24,Crown Court Graduated Fee Scheme,SEOC Team 2,5 Paper Buildings,112890/MH,"45,601.20",Y
Crown Prosecution Service ,29/01/24,General Professional Services,DTS Programme Project Cost,NTT Data UK Ltd London,121573460,"49,207.20",Y
Crown Prosecution Service ,29/01/24,Crown Court Graduated Fee Scheme,London North Complex Casework Unit,23 Essex Street Chambers,202001-JAP-Trial,"93,582.12",Y
Crown Prosecution Service ,29/01/24,Crown Court Graduated Fee Scheme,North West Complex Casework Unit,Dere Street Barristers,388565 JE1,"62,547.12",
Crown Prosecution Service ,29/01/24,Crown Court Graduated Fee Scheme,Yorkshire and Humberside Complex Casework Unit,Park Square Barristers (No 6 and Sovereign merged),596865/RS/TRL2,"27,916.20",Y
Crown Prosecution Service ,29/01/24,Crown Court Graduated Fee Scheme,London North Complex Casework Unit,5 King's Bench Walk,BHO177947.Trial,"61,984.80",Y
Crown Prosecution Service ,29/01/24,Crown Court Graduated Fee Scheme,London North Complex Casework Unit,QEB Hollis Whiteman Chambers,CA 112879 A,"108,299.40",Y
Crown Prosecution Service ,29/01/24,Recoverable VAT control,Balance Sheet,Konica Minolta Business Solutions Limited,Fleet202312,"13,985.69",Y
Crown Prosecution Service ,29/01/24,Variable lease payment expenses IT and Equipment,Print Contract,Konica Minolta Business Solutions Limited,Fleet202312,"69,928.46",
Crown Prosecution Service ,29/01/24,IT services,DTS Programme Project Cost,CGI IT UK Ltd,GB014123248,"29,796.07",Y
Crown Prosecution Service ,29/01/24,IT services,DTS Programme Project Cost,Bloom Procurement Services Ltd Gateshead,SIN048830,"178,622.00",Y
Crown Prosecution Service ,30/01/24,IT services,DTS Programme Project Cost,NTT Data UK Ltd London,121578969,"92,005.93",Y
Crown Prosecution Service ,31/01/24,Crown Court Very High Cost Cases Full Scheme,Yorkshire and Humberside Complex Casework Unit,Kings Bench Walk Leeds,118002/st17/DBKC,"31,893.00",Y
Crown Prosecution Service ,31/01/24,Crown Court Very High Cost Cases Full Scheme,West Midlands Complex Casework Unit,Foundry Chambers (9-12 Bell Yard),201071/WH,"39,439.60",Y
Crown Prosecution Service ,31/01/24,Crown Court Graduated Fee Scheme,Yorks and Humbs CC Legal,New Park Court Chambers Leeds,356799-2/MXD,"32,424.00",Y
Crown Prosecution Service ,31/01/24,Crown Court Graduated Fee Scheme,Yorks and Humbs CC Legal,New Park Court Chambers Leeds,356799-2/RSKC,"93,750.96",Y
Crown Prosecution Service ,31/01/24,Crown Court Graduated Fee Scheme,West Midlands Complex Casework Unit,No 5 Fountain Court Chambers,796552/JH/1,"71,165.16",Y
Crown Prosecution Service ,31/01/24,Recoverable VAT control,Balance Sheet,AVR Transcription Ltd Bolton,DEC23-CPS-36727,"13,547.21",Y
Crown Prosecution Service ,31/01/24,Transcriptions and Translation,Other Corporate Programme Payments,AVR Transcription Ltd Bolton,DEC23-CPS-36727,"67,736.07",
